bitfinex/quotes_SOLUSD_20250531
["timestamp","ask_amount","ask_price","bid_price","bid_amount"]
[1748697989908,14.03426932,155.34,155.29,20.473834]
[1748697991193,20.4718132,155.34,155.29,20.473834]
[1748697991396,14.03426932,155.33,155.29,6.43956468]
[1748697991993,14.03426932,155.33,155.28,101.83426932]
[1748697992294,14.03426932,155.32,155.28,94.23996758]
[1748697993225,14.03426932,155.33,155.28,108.2742369]
[1748697994217,14.03426932,155.33,155.29,18.64964886]
[1748697994415,14.03426932,155.34,155.29,32.68391818]
[1748697995931,46.69714516,155.35,155.29,32.68391818]
[1748697995932,14.03426932,155.33,155.29,18.64964886]
[1748697996180,14.03426932,155.33,155.28,20.4742369]
[1748697996419,14.03426932,155.31,155.27,6.44023455]
[1748697996609,14.03426932,155.31,155.26,108.27498599]
[1748697996815,14.03426932,155.3,155.26,87.8]
[1748697997294,14.03426932,155.29,155.26,87.8]
[1748697997815,14.03426932,155.28,155.26,87.8]
[1748697998021,14.03426932,155.28,155.23,31.19600638]
[1748697998818,20.47390311,155.29,155.23,31.19600638]
[1748697999699,14.03426932,155.27,155.23,10.72]
[1748697999928,14.03426932,155.27,155.23,17.16186061]
[1748698001493,14.03426932,155.29,155.24,14.03426932]
[1748698001699,14.03426932,155.29,155.24,101.83426932]
[1748698002493,20.47389548,155.29,155.24,87.8]
[1748698002718,14.03426932,155.28,155.24,87.8]
[1748698004122,14.03426932,155.28,155.24,94.24160538]
[1748698004444,14.03426932,155.29,155.24,94.24160538]
[1748698004827,14.03426932,155.28,155.24,94.24160538]
[1748698005427,20.47327301,155.31,155.25,14.03426932]
[1748698006438,14.03426932,155.31,155.27,6.44039415]
[1748698007351,14.03426932,155.31,155.26,87.8]
[1748698007352,14.03426932,155.29,155.26,87.8]
[1748698009351,14.03426932,155.3,155.26,94.24079157]
[1748698010030,26.0,155.34,155.26,108.27506089]
[1748698010031,14.03426932,155.31,155.26,108.27506089]
[1748698010423,14.03426932,155.32,155.26,108.27506089]
[1748698012330,14.03426932,155.32,155.27,14.03426932]
[1748698012850,14.03426932,155.33,155.28,6.43997939]
[1748698013025,14.03426932,155.33,155.28,20.47424871]
[1748698015153,14.03426932,155.33,155.28,108.27424871]
[1748698015854,14.03426932,155.33,155.28,94.23997939]
[1748698018436,20.47223226,155.33,155.28,94.23997939]
[1748698018650,14.03426932,155.33,155.28,94.23997939]
[1748698019358,14.03426932,155.34,155.29,32.68391818]
[1748698019841,14.03426932,155.34,155.29,120.48391818]
[1748698020438,14.03426932,155.34,155.3,6.43915003]
[1748698020639,14.03426932,155.34,155.3,94.23915003]
[1748698021035,14.03426932,155.33,155.3,94.23915003]
[1748698021231,14.03426932,155.33,155.3,87.8]
[1748698021436,14.03426932,155.32,155.3,87.8]
[1748698021947,14.03426932,155.33,155.3,87.8]
[1748698022337,46.67708724,155.35,155.3,87.8]
[1748698022668,14.03426932,155.34,155.3,94.23896783]
[1748698023389,26.0,155.39,155.33,14.03426932]
[1748698023675,54.25426932,155.37,155.33,87.8]
[1748698023837,14.03426932,155.36,155.33,87.8]
[1748698024033,14.03426932,155.35,155.33,87.8]
[1748698024240,14.03426932,155.34,155.3,87.8]
[1748698024440,14.03426932,155.33,155.3,87.8]
[1748698024635,14.03426932,155.31,155.28,87.8]
[1748698024945,14.03426932,155.31,155.27,17.14031509]
[1748698024946,14.03426932,155.31,155.27,87.8]
[1748698025159,14.03426932,155.28,155.25,87.8]
[1748698025467,14.03426932,155.26,155.23,87.8]
[1748698026356,14.03426932,155.26,155.2,7.9027]
[1748698026357,14.03426932,155.25,155.2,6.4432]
[1748698026565,14.03426932,155.24,155.2,6.4432]
[1748698026899,14.03426932,155.23,155.19,10.7]
[1748698027269,14.03426932,155.22,155.17,20.47867357]
[1748698027674,14.03426932,155.22,155.17,6.44440425]
[1748698027879,14.03426932,155.22,155.17,20.47867357]
[1748698028270,14.03426932,155.23,155.18,14.03426932]
[1748698028575,14.03426932,155.23,155.19,6.44371415]
[1748698028967,14.03426932,155.23,155.18,20.47826888]
[1748698029587,14.03426932,155.22,155.18,6.44399956]
[1748698030698,14.03426932,155.23,155.18,6.44399956]
[1748698031974,14.03426932,155.23,155.18,20.47826888]
[1748698033374,14.03426932,155.23,155.18,6.44399956]
[1748698034597,14.03426932,155.23,155.18,20.47826888]
[1748698037580,14.03426932,155.24,155.19,14.03426932]
[1748698039489,14.03426932,155.24,155.2,6.44329896]
[1748698040019,14.03426932,155.23,155.2,6.44329896]
[1748698040681,14.03426932,155.24,155.2,6.44329896]
[1748698043033,14.03426932,155.24,155.2,94.24329896]
[1748698045931,14.03426932,155.25,155.2,108.27756828]
[1748698047145,1.5614,155.32,155.24,14.03426932]
[1748698047308,1.5614,155.32,155.28,14.03426932]
[1748698047509,14.03426932,155.34,155.29,14.03426932]
[1748698049234,14.03426932,155.34,155.3,6.43915003]
[1748698049448,56.19566932,155.36,155.3,20.47341935]
[1748698049813,14.03426932,155.35,155.3,6.43915003]
[1748698050844,14.03426932,155.32,155.27,10.68]
[1748698051141,14.03426932,155.32,155.27,6.44036662]
[1748698052418,14.03426932,155.32,155.27,20.47463594]
[1748698052617,14.03426932,155.33,155.28,14.03426932]
[1748698052815,14.03426932,155.34,155.28,14.03426932]
[1748698054035,14.03426932,155.33,155.29,6.43956468]
[1748698056248,1.5614,155.36,155.32,14.03426932]
[1748698056454,14.03426932,155.37,155.32,14.03426932]
[1748698056621,14.03426932,155.37,155.32,101.83426932]
[1748698056825,14.03426932,155.37,155.32,87.8]
[1748698057459,14.03426932,155.37,155.32,101.83426932]
[1748698057950,24.71426932,155.38,155.32,101.83426932]
[1748698058147,27.3936322,155.4,155.33,20.47217571]
[1748698058351,14.03426932,155.38,155.33,108.27217571]
[1748698058538,14.03426932,155.38,155.33,124.36694169]
[1748698058734,27.3936322,155.4,155.34,14.03426932]
[1748698059030,14.03426932,155.4,155.35,14.03426932]
[1748698059242,14.03426932,155.41,155.36,14.03426932]
[1748698059949,24.71426932,155.42,155.37,14.03426932]
[1748698060143,24.71426932,155.42,155.38,6.43583472]
[1748698060450,34.8020801,155.45,155.38,20.47010404]
[1748698060451,69.2890364,155.45,155.38,20.47010404]
[1748698060636,14.03426932,155.43,155.38,20.47010404]
[1748698061027,14.03426932,155.42,155.38,6.43583472]
[1748698061226,60.80226903,155.45,155.35,45.4221253]
[1748698061227,14.03426932,155.41,155.36,14.03426932]
[1748698061438,77.26366903,155.45,155.34,26.0]
[1748698061439,14.03426932,155.39,155.34,14.03426932]
[1748698061923,14.03426932,155.39,155.32,42.23712957]
[1748698061924,14.03426932,155.4,155.35,14.03426932]
[1748698062443,14.03426932,155.4,155.36,6.43666323]
[1748698063231,14.03426932,155.4,155.35,20.47121934]
[1748698064566,20.46937742,155.4,155.35,14.03426932]
[1748698064734,14.03426932,155.38,155.33,14.03426932]
[1748698064932,14.03426932,155.37,155.31,24.71426932]
[1748698065965,14.03426932,155.37,155.32,20.4725902]
[1748698066252,68.394,155.4,155.33,14.03426932]
[1748698066467,14.03426932,155.38,155.33,14.03426932]
[1748698067039,14.03426932,155.38,155.33,101.83426932]
[1748698067748,14.03426932,155.39,155.34,14.03426932]
[1748698067944,14.03426932,155.39,155.35,6.43707756]
[1748698069565,14.03426932,155.4,155.35,20.47134688]
[1748698069751,54.79426932,155.41,155.36,14.03426932]
[1748698070559,61.22904936,155.41,155.36,14.03426932]
[1748698070765,14.03426932,155.4,155.35,14.03426932]
[1748698070939,14.03426932,155.4,155.34,6.43735056]
[1748698071140,14.03426932,155.38,155.34,94.23735056]
[1748698072190,14.03426932,155.38,155.34,87.8]
[1748698073485,14.03426932,155.38,155.34,94.23744961]
[1748698074068,6.43507174,155.4,155.34,108.27171893]
[1748698074288,14.03426932,155.39,155.34,108.27171893]
[1748698076113,14.03426932,155.38,155.34,87.8]
[1748698077607,14.03426932,155.39,155.34,108.27161852]
[1748698078687,20.46976671,155.39,155.34,94.2373492]
[1748698078888,14.03426932,155.39,155.34,94.2373492]
[1748698079107,14.03426932,155.39,155.34,108.27161852]
[1748698079312,47.19473301,155.41,155.34,108.27161852]
[1748698079313,14.03426932,155.4,155.35,14.03426932]
[1748698079613,54.77426932,155.4,155.35,14.03426932]
[1748698080901,14.03426932,155.39,155.34,108.27161852]
[1748698081507,14.03426932,155.39,155.34,87.8]
[1748698081508,14.03426932,155.37,155.34,87.8]
[1748698081685,14.03426932,155.36,155.31,112.51426932]
[1748698081889,14.03426932,155.35,155.31,98.48]
[1748698082930,14.03426932,155.35,155.31,104.91859325]
[1748698083104,14.03426932,155.35,155.31,98.48]
[1748698083304,14.03426932,155.35,155.31,104.91862861]
[1748698084329,14.03426932,155.37,155.32,14.03426932]
[1748698084530,14.03426932,155.38,155.33,14.03426932]
[1748698085133,20.47022418,155.38,155.33,6.43776534]
[1748698085502,14.03426932,155.38,155.33,6.43776534]
[1748698085935,14.03426932,155.37,155.32,14.03426932]
[1748698086103,14.03426932,155.37,155.32,20.47253733]
[1748698087414,14.03426932,155.37,155.32,87.8]
[1748698087415,20.47055287,155.37,155.32,87.8]
[1748698088327,20.47055287,155.37,155.32,94.2382656]
[1748698088906,14.03426932,155.37,155.32,94.2382656]
[1748698089217,14.03426932,155.37,155.32,108.27253492]
[1748698089822,6.4359166,155.38,155.32,108.27253492]
[1748698089823,14.03426932,155.38,155.32,108.27253492]
[1748698090946,20.4702258,155.38,155.32,108.27253492]
[1748698091133,14.03426932,155.38,155.32,108.27253492]
[1748698091941,20.47025301,155.38,155.32,108.27253492]
[1748698092140,14.03426932,155.37,155.32,108.27253492]
[1748698092645,14.03426932,155.37,155.32,101.83426932]
[1748698092854,14.03426932,155.33,155.28,94.23981351]
[1748698093025,14.03426932,155.32,155.27,94.24024476]
[1748698093341,14.03426932,155.3,155.27,87.8]
[1748698093729,14.03426932,155.31,155.27,94.24033388]
[1748698094133,14.03426932,155.32,155.27,94.24033388]
[1748698094352,14.03426932,155.33,155.28,14.03426932]
[1748698095335,14.03426932,155.33,155.29,6.43956468]
[1748698096639,14.03426932,155.33,155.28,108.27409217]
[1748698096821,20.47228699,155.33,155.28,108.27409217]
[1748698097018,20.47228699,155.33,155.28,101.83426932]
[1748698097249,14.03426932,155.32,155.28,87.8]
[1748698097621,6.43806144,155.33,155.28,87.8]
[1748698097622,14.03426932,155.33,155.28,108.27398909]
[1748698099036,20.47232654,155.33,155.28,108.27398909]
[1748698099233,14.03426932,155.32,155.28,94.23971977]
[1748698099928,14.03426932,155.32,155.27,87.8]
[1748698099929,14.03426932,155.31,155.27,87.8]
[1748698100849,14.03426932,155.31,155.27,94.24024381]
[1748698101050,14.03426932,155.32,155.27,108.27451313]
[1748698102522,26.0,155.34,155.27,108.27451313]
[1748698102825,14.03426932,155.33,155.28,14.03426932]
[1748698103655,14.03426932,155.33,155.29,6.43956468]
[1748698103946,14.03426932,155.32,155.28,6.43989155]
[1748698104648,14.03426932,155.31,155.27,87.8]
[1748698104851,14.03426932,155.31,155.27,94.2402597]
[1748698105532,14.03426932,155.32,155.27,108.27452902]
[1748698106937,20.47269535,155.32,155.27,108.27452902]
[1748698108632,20.47269535,155.32,155.27,101.83426932]
[1748698108954,14.03426932,155.31,155.26,20.47491696]
[1748698109456,14.03426932,155.31,155.26,14.03426932]
[1748698110749,14.03426932,155.31,155.26,20.47497231]
[1748698111141,14.03426932,155.31,155.27,14.03426932]
[1748698111334,20.47269535,155.32,155.27,14.03426932]
[1748698111957,14.03426932,155.31,155.26,14.03426932]
[1748698112754,14.03426932,155.31,155.26,20.47482058]
[1748698113440,20.47311002,155.31,155.26,20.47482058]
[1748698113642,14.03426932,155.27,155.24,87.8]
[1748698114247,14.03426932,155.28,155.24,94.24150011]
[1748698114941,54.43426932,155.3,155.25,14.03426932]
[1748698115143,40.4,155.3,155.26,14.03426932]
[1748698115362,40.03426932,155.31,155.26,14.03426932]
[1748698115363,14.03426932,155.31,155.26,14.03426932]
[1748698115656,14.03426932,155.31,155.26,101.83426932]
[1748698117453,14.03426932,155.31,155.26,108.27470377]
[1748698117947,14.03426932,155.3,155.26,94.24043445]
[1748698119856,20.47342035,155.3,155.26,87.8]
[1748698120061,14.03426932,155.29,155.26,87.8]
[1748698120761,14.03426932,155.3,155.26,94.24077778]
[1748698121148,20.47317865,155.31,155.26,94.24077778]
[1748698121461,14.03426932,155.31,155.26,94.24077778]
[1748698121669,20.47304896,155.31,155.26,94.24077778]
[1748698121846,14.03426932,155.3,155.26,94.24077778]
[1748698122247,14.03426932,155.29,155.26,94.24077778]
[1748698122766,14.03426932,155.29,155.26,87.8]
[1748698123440,14.03426932,155.28,155.26,87.8]
[1748698123938,20.47466347,155.27,155.26,87.8]
[1748698124134,20.47466347,155.27,155.21,87.8]
[1748698124334,14.03426932,155.26,155.21,94.24280574]
[1748698124534,14.03426932,155.26,155.21,108.27707506]
[1748698126038,20.47530722,155.26,155.21,108.27707506]
[1748698126340,14.03426932,155.25,155.21,87.8]
[1748698127860,20.47553821,155.25,155.21,87.8]
[1748698128464,14.03426932,155.23,155.21,87.8]
[1748698128768,14.03426932,155.23,155.18,101.83426932]
[1748698129264,14.03426932,155.22,155.18,87.8]
[1748698130045,20.47679626,155.22,155.18,87.8]
[1748698130862,20.47679626,155.22,155.17,101.83426932]
[1748698131265,14.03426932,155.21,155.17,87.8]
[1748698132454,14.03426932,155.21,155.17,94.24452502]
[1748698132869,14.03426932,155.21,155.17,87.8]
[1748698134683,14.03426932,155.21,155.16,20.47907971]
[1748698136274,14.03426932,155.22,155.17,14.03426932]
[1748698137157,14.03426932,155.18,155.17,87.8]
[1748698137364,14.03426932,155.18,155.13,94.24608325]
[1748698137669,14.03426932,155.18,155.13,108.28035257]
[1748698137879,14.03426932,155.17,155.13,87.8]
[1748698138289,40.28,155.19,155.11,6.44687899]
[1748698138290,14.03426932,155.16,155.11,6.44687899]
[1748698138583,54.31426932,155.16,155.11,6.44687899]
[1748698138781,54.31426932,155.16,155.1,28.72701111]
[1748698139951,60.75932102,155.16,155.1,28.72701111]
[1748698140157,54.31426932,155.16,155.1,28.72701111]
[1748698140583,54.31426932,155.16,155.11,14.03426932]
[1748698141082,49.31426932,155.16,155.11,14.03426932]
[1748698141391,35.28,155.16,155.12,20.48089129]
[1748698141768,55.75932609,155.16,155.11,20.48127414]
[1748698141983,55.75932609,155.16,155.1,27.11477026]
[1748698141984,14.03426932,155.15,155.1,27.11477026]
[1748698142479,55.75932609,155.16,155.1,27.11477026]
[1748698143266,14.03426932,155.15,155.1,20.66746932]
[1748698143657,14.03426932,155.15,155.1,108.46746932]
[1748698143894,55.75932609,155.16,155.1,108.46746932]
[1748698144395,55.75932609,155.16,155.11,14.03426932]
[1748698144691,14.03426932,155.15,155.1,14.03426932]
[1748698144988,14.03426932,155.13,155.09,87.8]
[1748698145983,20.48068318,155.13,155.09,87.8]
[1748698146185,14.03426932,155.12,155.08,87.8]
[1748698147295,20.48120593,155.12,155.08,87.8]
[1748698147467,20.48120593,155.12,155.06,109.93638364]
[1748698147665,14.03426932,155.11,155.06,101.83426932]
[1748698148160,20.48120593,155.12,155.07,14.03426932]
[1748698148368,14.03426932,155.12,155.07,14.03426932]
[1748698148763,20.48090303,155.12,155.07,14.03426932]
[1748698149201,20.48090303,155.12,155.06,108.28325399]
[1748698149699,14.03426932,155.11,155.06,94.24898467]
[1748698149866,46.7463603,155.13,155.07,14.03426932]
[1748698150065,14.03426932,155.12,155.07,14.03426932]
[1748698150481,14.03426932,155.11,155.06,108.28325399]
[1748698152699,20.48137546,155.11,155.06,94.24898467]
[1748698152902,20.48137546,155.11,155.06,108.28325399]
[1748698153105,14.03426932,155.11,155.06,108.28325399]
[1748698153595,20.48143934,155.11,155.06,108.28325399]
[1748698153996,14.03426932,155.1,155.06,87.8]
[1748698154202,14.03426932,155.09,155.06,87.8]
[1748698154390,14.03426932,155.09,155.04,14.03426932]
[1748698154391,14.03426932,155.09,155.04,101.83426932]
[1748698154591,54.33426932,155.1,155.04,101.83426932]
[1748698154780,60.78181923,155.1,155.04,108.28415411]
[1748698155886,54.33426932,155.1,155.05,14.03426932]
[1748698156295,60.78174116,155.1,155.05,14.03426932]
[1748698156894,14.03426932,155.09,155.04,14.03426932]
[1748698157209,14.03426932,155.09,155.04,20.48406159]
[1748698157680,60.78174116,155.1,155.05,14.03426932]
[1748698158080,54.33426932,155.1,155.05,14.03426932]
[1748698159811,54.33426932,155.1,155.06,6.44911647]
[1748698160408,14.03426932,155.1,155.06,6.44911647]
[1748698160608,40.3,155.11,155.08,14.03426932]
[1748698160785,40.3,155.11,155.07,14.03426932]
[1748698160988,51.91612184,155.11,155.07,14.03426932]
[1748698161687,51.91612184,155.11,155.07,20.48272393]
[1748698163187,72.39743648,155.11,155.06,108.28321953]
[1748698164008,72.39743648,155.11,155.06,101.83426932]
[1748698164525,72.39743648,155.11,155.06,14.03426932]
[1748698165914,72.39743648,155.11,155.06,20.483075]
[1748698166620,60.78131464,155.11,155.06,20.483075]
[1748698166820,60.78131464,155.11,155.06,14.03426932]
[1748698167022,60.78131464,155.11,155.06,20.48317511]
[1748698168025,14.03426932,155.11,155.07,14.03426932]
[1748698168232,54.33426932,155.11,155.07,14.03426932]
[1748698170005,60.78132188,155.11,155.07,14.03426932]
[1748698170418,60.78132188,155.11,155.06,20.48317511]
[1748698171219,60.78132188,155.11,155.06,14.03426932]
[1748698173439,14.03426932,155.1,155.05,102.83426932]
[1748698173613,14.03426932,155.09,155.05,88.8]
[1748698173934,14.03426932,155.06,155.05,1.0]
[1748698174133,14.17643089,155.06,155.05,1.0]
[1748698174513,40.31859246,155.06,155.05,1.0]
[1748698174931,51.03859246,155.06,155.05,1.0]
[1748698175447,57.48770893,155.06,155.05,1.0]
[1748698175808,76.13735779,155.06,155.05,1.0]
[1748698179910,50.13735779,155.06,155.05,1.0]
[1748698180917,0.14216157,155.02,154.96,6.45321048]
[1748698181111,26.0,155.03,154.96,6.45321048]
[1748698181112,14.03426932,155.0,154.96,6.45321048]
[1748698181455,18.75511647,155.06,154.99,14.03426932]
[1748698181623,97.52338579,155.06,155.01,14.03426932]
[1748698181937,14.03426932,155.05,155.01,6.45119669]
[1748698182315,14.03426932,155.05,154.99,14.03426932]
[1748698182826,20.48389169,155.05,154.99,20.48629848]
[1748698183231,14.03426932,155.04,154.99,20.48629848]
[1748698183636,14.03426932,155.05,154.99,20.48629848]
[1748698183816,14.03426932,155.05,155.0,14.03426932]
[1748698184018,97.52348817,155.06,155.0,20.48549844]
[1748698184216,97.52348817,155.06,155.01,14.03426932]
[1748698184424,97.52348817,155.06,155.0,6.45122912]
[1748698184624,14.03426932,155.03,154.98,6.45244547]
[1748698184915,14.03426932,155.04,154.98,20.48671479]
[1748698185845,14.03426932,155.04,154.98,6.45244547]
[1748698186144,83.48921885,155.06,154.97,14.03426932]
[1748698186145,20.48485578,155.03,154.97,14.03426932]
[1748698186435,14.03426932,155.02,154.96,6.45327826]
[1748698186641,14.03426932,155.02,154.97,14.03426932]
[1748698187144,20.48485578,155.03,154.97,14.03426932]
[1748698187643,14.03426932,155.03,154.98,14.03426932]
[1748698188022,20.48434282,155.04,154.98,14.03426932]
[1748698188225,14.03426932,155.03,154.99,6.45202916]
[1748698188831,6.4495324,155.05,154.99,6.45202916]
[1748698189030,14.03426932,155.04,154.99,6.45202916]
[1748698189234,20.4842547,155.04,154.96,18.64964886]
[1748698189442,14.03426932,155.04,154.98,14.03426932]
[1748698190027,14.03426932,155.03,154.98,14.03426932]
[1748698190541,14.03426932,155.02,154.96,18.64964886]
[1748698190727,14.03426932,155.02,154.97,14.03426932]
[1748698191151,14.03426932,155.01,154.96,14.03426932]
[1748698191534,14.03426932,155.02,154.97,6.45286184]
[1748698191732,20.48514197,155.02,154.97,20.48713116]
[1748698192148,14.03426932,155.01,154.96,20.4874502]
[1748698192445,14.03426932,155.01,154.96,6.45318088]
[1748698192634,14.03426932,155.0,154.96,6.45318088]
[1748698193148,6.45087265,155.02,154.94,41.68166932]
[1748698193149,14.03426932,154.99,154.94,41.68166932]
[1748698193623,14.03426932,154.99,154.94,48.13566503]
[1748698194021,20.48635954,154.99,154.94,20.48826503]
[1748698194223,14.03426932,154.98,154.94,6.45399571]
[1748698195934,14.03426932,154.99,154.94,20.48826503]
[1748698197157,20.48635741,154.99,154.94,20.48826503]
[1748698198039,14.03426932,154.98,154.94,6.45399571]
[1748698199953,14.03426932,154.98,154.93,20.48866226]
[1748698200460,14.03426932,154.97,154.92,20.48904999]
[1748698200836,14.03426932,154.98,154.93,14.03426932]
[1748698201241,14.03426932,154.99,154.94,14.03426932]
[1748698201444,20.4863543,154.99,154.94,14.03426932]
[1748698201647,14.03426932,154.98,154.93,14.03426932]
[1748698202153,14.03426932,154.99,154.94,14.03426932]
[1748698202746,14.03426932,154.99,154.93,14.03426932]
[1748698202945,14.03426932,154.99,154.94,14.03426932]
[1748698203335,14.03426932,154.99,154.94,20.48822606]
[1748698203540,10.72,155.0,154.96,14.03426932]
[1748698204063,14.03426932,155.02,154.97,14.03426932]
[1748698204461,14.03426932,155.02,154.94,22.58923491]
[1748698204462,26.0,155.03,154.98,14.03426932]
[1748698204757,14.03426932,155.02,154.97,14.03426932]
[1748698205334,46.48475429,155.03,154.97,20.4867326]
[1748698206047,14.03426932,155.02,154.97,20.4867326]
[1748698206771,20.48508819,155.02,154.97,20.4867326]
[1748698207947,14.03426932,155.02,154.97,20.4867326]
[1748698208271,20.48519461,155.02,154.97,20.4867326]
[1748698208447,14.03426932,155.02,154.97,20.4867326]
[1748698208649,14.03426932,155.02,154.97,108.2867326]
[1748698211169,40.03426932,155.03,154.98,14.03426932]
[1748698211878,46.48463399,155.03,154.98,14.03426932]
[1748698212374,40.03426932,155.03,154.98,14.03426932]
[1748698213071,40.03426932,155.03,154.97,108.2867326]
[1748698213072,14.03426932,155.02,154.97,108.2867326]
[1748698213256,14.03426932,155.01,154.97,87.8]
[1748698213646,14.03426932,155.0,154.97,87.8]
[1748698213872,40.3,155.0,154.97,87.8]
[1748698214061,54.33426932,155.0,154.95,20.48791057]
[1748698214571,40.3,155.0,154.96,14.03426932]
[1748698214744,40.3,155.0,154.97,14.03426932]
[1748698214949,14.03426932,155.02,154.97,14.03426932]
[1748698215150,54.33426932,155.02,154.97,20.48675419]
[1748698216577,60.78507725,155.02,154.97,20.48675419]
[1748698216972,40.3,155.02,154.97,108.28675419]
[1748698218675,54.33426932,155.02,154.97,108.28675419]
[1748698220462,40.03426932,155.03,154.97,108.28675419]
[1748698220665,80.33426932,155.03,154.97,108.28675419]
[1748698220864,86.78474863,155.03,154.97,108.28675419]
[1748698223051,20.48474863,155.03,154.97,108.28675419]
[1748698223285,40.3,155.02,154.97,108.28675419]
[1748698224162,60.78510466,155.02,154.97,108.28675419]
[1748698225687,54.33426932,155.02,154.97,108.28675419]
[1748698226298,18.7965,155.04,154.97,108.28675419]
[1748698226299,10.72,155.04,155.0,14.03426932]
[1748698226475,51.02,155.04,155.0,14.03426932]
[1748698227462,51.02,155.04,155.01,14.03426932]
[1748698227863,10.72,155.04,155.01,14.03426932]
[1748698228063,51.02,155.04,155.01,20.48529289]
[1748698228468,51.02,155.04,155.0,20.48573442]
[1748698228866,51.02,155.04,155.01,14.03426932]
[1748698229080,40.3,155.06,155.01,14.03426932]
[1748698230471,40.3,155.06,155.02,6.45078054]
[1748698231073,60.78341112,155.06,155.01,20.48528508]
[1748698231369,54.31426932,155.05,155.01,6.45101576]
[1748698231774,40.28,155.05,155.01,20.48528508]
[1748698232286,40.28,155.06,155.03,14.03426932]
[1748698232496,40.28,155.06,155.03,20.48439734]
[1748698232788,26.29716932,155.08,155.03,20.48439734]
[1748698232963,40.28,155.07,155.03,20.48439734]
[1748698233164,10.7,155.08,155.04,14.03426932]
[1748698233384,50.98,155.08,155.04,14.03426932]
[1748698233888,32.44754619,155.1,155.04,14.03426932]
[1748698234091,40.28,155.09,155.05,14.03426932]
[1748698234393,72.72754619,155.1,155.05,14.03426932]
[1748698234584,14.03426932,155.09,155.04,101.83426932]
[1748698234774,72.72754619,155.1,155.04,101.83426932]
[1748698234775,14.03426932,155.07,155.04,87.8]
[1748698235377,14.03426932,155.08,155.04,87.8]
[1748698236397,14.03426932,155.07,155.04,87.8]
[1748698236583,54.31426932,155.07,155.04,87.8]
[1748698238283,54.31426932,155.07,155.02,20.48478456]
[1748698240887,54.31426932,155.07,155.02,6.45051524]
[1748698241087,60.762981,155.07,155.01,101.83426932]
[1748698241290,14.03426932,155.06,155.01,101.83426932]
[1748698241580,60.762981,155.07,155.01,101.83426932]
[1748698242999,14.03426932,155.08,155.03,14.03426932]
[1748698243187,40.26,155.08,155.04,14.03426932]
[1748698243376,40.26,155.08,155.01,94.25110499]
[1748698243377,40.26,155.08,155.05,14.03426932]
[1748698244182,46.48189216,155.1,155.05,14.03426932]
[1748698244392,40.26,155.09,155.05,14.03426932]
[1748698244997,40.26,155.09,155.05,20.48361348]
[1748698245209,40.26,155.1,155.05,20.48361348]
[1748698246540,80.22959536,155.11,155.05,20.48361348]
[1748698247096,86.67674366,155.11,155.05,20.48361348]
[1748698247300,80.22959536,155.11,155.05,20.48361348]
[1748698247677,86.67676593,155.11,155.05,20.48361348]
[1748698247922,14.03426932,155.1,155.05,20.48361348]
[1748698249718,39.96959536,155.11,155.05,20.48361348]
[1748698250631,39.96959536,155.11,155.06,14.03426932]
[1748698251705,46.41664483,155.11,155.06,20.48322139]
[1748698251898,39.96959536,155.11,155.06,20.48322139]
[1748698252099,25.93532604,155.11,155.06,20.48322139]
[1748698252706,39.96959536,155.11,155.06,20.48322139]
[1748698253708,25.93532604,155.11,155.07,14.03426932]
[1748698254923,15.23532604,155.11,155.08,14.03426932]
[1748698256118,15.23532604,155.11,155.09,20.48213829]
[1748698257699,11.838693,155.13,155.09,20.48213829]
[1748698257900,11.838693,155.13,155.11,14.03426932]
[1748698258104,11.838693,155.13,155.11,20.48117941]
[1748698258305,50.92,155.15,155.12,14.03426932]
[1748698258306,10.68,155.15,155.12,14.03426932]
[1748698258831,88.34625223,155.17,155.11,20.48117941]
[1748698259014,48.10625223,155.17,155.11,20.48117941]
[1748698259333,48.10625223,155.17,155.12,20.48070149]
[1748698260603,26.0,155.17,155.12,20.48070149]
[1748698260916,60.71839905,155.18,155.12,20.48070149]
[1748698261335,10.68,155.19,155.15,14.03426932]
[1748698261911,24.71426932,155.19,155.14,14.03426932]
[1748698262611,24.71426932,155.19,155.14,20.47976551]
[1748698263353,11.75996353,155.22,155.18,14.03426932]
[1748698265432,11.75996353,155.22,155.18,20.47837422]
[1748698265634,11.75996353,155.22,155.19,14.03426932]
[1748698266412,11.25996353,155.22,155.19,14.03426932]
[1748698266618,11.25996353,155.22,155.21,14.03426932]
[1748698266844,26.0,155.25,155.21,14.03426932]
[1748698267228,26.0,155.25,155.22,14.03426932]
[1748698267420,17.12047057,155.27,155.22,14.03426932]
[1748698267826,17.12047057,155.27,155.23,14.03426932]
[1748698268620,17.12047057,155.27,155.19,1.5633]
[1748698268621,6.44011969,155.28,155.24,14.03426932]
[1748698268822,6.43966073,155.29,155.25,14.03426932]
[1748698269025,60.69355357,155.3,155.25,14.03426932]
[1748698269337,17.1188386,155.31,155.27,14.03426932]
[1748698269520,31.15310792,155.31,155.26,14.03426932]